Workbook

Sheet Début
B1: À PROPOS DE CE MODÈLE
B2: Utilisez ce classeur Budget d’événement pour effectuer le suivi des dépenses engagées et des recettes tirées d’un événement.
B3: Entrez le nom de l’événement ainsi que les détails dans les tableaux des feuilles de calcul Dépenses et Recettes.
B4: Le total des dépenses et le total des recettes sont calculés automatiquement.
B5: La synthèse et le graphique Compte de résultat sont mis à jour automatiquement dans la feuille de calcul Synthèse du compte de résultat.
B6: Remarque :
B7: Des instructions supplémentaires sont disponibles dans la colonne A de chaque feuille de calcul. Ce texte a été intentionnellement masqué. Pour supprimer le texte, sélectionnez la colonne A, puis SUPPRIMER.
B8: Pour en savoir plus sur les tables, appuyez sur MAJ, puis sur F10 au sein d’une table, et sélectionnez les options TABLE et TEXTE DE REMPLACEMENT.

Sheet Dépenses
A1: Entrez les dépenses estimées et réelles de chaque catégorie dans les tableaux correspondants de cette feuille de calcul, et le nom de l’événement en cellule D1 pour personnaliser le titre de cette feuille de calcul et des autres. Le sous-titre de cette feuille de calcul figure dans la cellule H1. Des instructions utiles sur l’utilisation de cette feuille de calcul sont disponibles dans les cellules de cette colonne. L’instruction suivante figure dans la cellule A3. | B1: Budget d’événement pour | D1: Nom de l’événement | H1: DÉPENSES
A3: L’étiquette Total des dépenses figure dans la cellule de droite, l’étiquette Estimé en cellule G3 et Réel en H3. | B3: TOTAL DES DÉPENSES | G3: Estimé | H3: Réel
A4: Le total des dépenses estimées en cellule G4 et le total des dépenses réelles en H4 sont calculés automatiquement. L’instruction suivante figure dans la cellule A6. | G4: =SUM(C11,C19,C25,C32,G11,G19,G24) -> 882.00 € | H4: =SUM(D11,D19,D25,D32,H11,H19,H24) -> 302.00 €
A6: Entrez les dépenses consacrées au site dans le tableau à partir de la cellule de droite, et les dépenses en rafraîchissements dans le tableau à partir de la cellule F6. L’instruction suivante figure dans la cellule A13. | B6: Site | C6: Estimé | D6: Réel | F6: Rafraîchissements | G6: Estimé | H6: Réel
B7: Location de salle | C7: 500.00 € | F7: Repas
B8: Personnel du site | F8: Boissons | G8: 20.00 €
B9: Matériel | F9: Linge de table | H9: 20.00 €
B10: Tables et chaises | F10: Personnel et pourboires
B11: Total | C11: =SUBTOTAL(109,DépensesSite[Estimé]) -> 500.00 € | D11: =SUBTOTAL(103,DépensesSite[Réel]) -> 0.00 € | F11: Total | G11: =SUBTOTAL(109,DépensesBoissons[Estimé]) -> 20.00 € | H11: =SUBTOTAL(103,DépensesBoissons[Réel]) -> 1.00 €
A13: Entrez les dépenses consacrées à la décoration dans le tableau à partir de la cellule de droite, et les dépenses relatives au programme dans le tableau à partir de la cellule F13. L’instruction suivante figure dans la cellule A21. | B13: Décorations | C13: Estimé | D13: Réel | F13: Programme | G13: Estimé | H13: Réel
B14: Fleurs | C14: 200.00 € | D14: 300.00 € | F14: Intervenants
B15: Bougies | F15: Présentateurs | G15: 30.00 €
B16: Éclairage | F16: Déplacements
B17: Ballons | F17: Hôtel
B18: Fournitures papier | F18: Autres
B19: Total | C19: =SUBTOTAL(109,DépensesDécoration[Estimé]) -> 200.00 € | D19: =SUBTOTAL(109,DépensesDécoration[Réel]) -> 300.00 € | F19: Total | G19: =SUBTOTAL(109,DépensesProgramme[Estimé]) -> 30.00 € | H19: =SUBTOTAL(103,DépensesProgramme[Réel]) -> 0.00 €
A21: Entrez les dépenses consacrées à la publicité dans le tableau à partir de la cellule de droite, et les dépenses relatives aux prix dans le tableau à partir de la cellule F21. L’instruction suivante figure dans la cellule A27. | B21: Publicité | C21: Estimé | D21: Réel | F21: Prix | G21: Estimé | H21: Réel
B22: Travail graphique | F22: Rubans/Plaques/Coupes
B23: Photocopie/Impression | C23: 20.00 € | F23: Cadeaux | G23: 100.00 €
B24: Affranchissement | F24: Total | G24: =SUBTOTAL(109,DépensesRécompenses[Estimé]) -> 100.00 € | H24: =SUBTOTAL(103,DépensesRécompenses[Réel]) -> 0.00 €
B25: Total | C25: =SUBTOTAL(109,DépensesPublicité[Estimé]) -> 20.00 € | D25: =SUBTOTAL(103,DépensesPublicité[Réel]) -> 0.00 €
A27: Entrez les dépenses diverses dans le tableau à partir de la cellule de droite. | B27: Divers | C27: Estimé | D27: Réel
B28: Téléphone | D28: 13.00 €
B29: Transport | C29: 12.00 €
B30: Papeterie
B31: Télécopie
B32: Total | C32: =SUBTOTAL(109,DépensesDiverses[Estimé]) -> 12.00 € | D32: =SUBTOTAL(103,DépensesDiverses[Réel]) -> 1.00 €

Sheet Recettes
A1: Entrez les recettes estimées et réelles de chaque catégorie dans les tableaux correspondants de cette feuille de calcul. Le titre de cette feuille de calcul est mis à jour automatiquement dans les cellules de droite. Le sous-titre figure dans la cellule G1. Des instructions utiles sur l’utilisation de cette feuille de calcul sont disponibles dans les cellules de cette colonne. L’instruction suivante figure dans la cellule A3. | B1: =Dépenses!B1 -> Budget d’événement pour | D1: =Dépenses!D1 -> Nom de l’événement | G1: RECETTES
A3: L’étiquette Total des recettes figure dans la cellule de droite, l’étiquette Estimé en cellule F3 et Réel en G3. | B3: TOTAL DES RECETTES | F3: Estimé | G3: Réel
A4: Le total des recettes estimées est calculé automatiquement en cellule F4 et le total des recettes réelles en G4. | F4: =SUM(Entrées[[#Totals],[Revenus estimés]],AnnoncesDansProgramme[[#Totals],[Revenus estimés]],ExposantsEtVendeurs[[#Totals],[Revenus estimés]],VenteArticles[[#Totals],[Revenus estimés]]) -> 1,936.00 € | G4: =SUM(Entrées[[#Totals],[Revenus réels]],AnnoncesDansProgramme[[#Totals],[Revenus réels]],ExposantsEtVendeurs[[#Totals],[Revenus réels]],VenteArticles[[#Totals],[Recettes réelles]]) -> 1,831.00 €
A5: L’étiquette Entrées se trouve dans la cellule de droite. | B5: ENTRÉES
A6: Entrez le nombre d’entrées estimé et réel avec le prix des billets dans le tableau à partir de la cellule de droite. Les recettes estimées et réelles issues des entrées sont calculées automatiquement. L’instruction suivante figure dans la cellule A11. | B6: Nombre estimé | C6: Nombre réel | D6: Type | E6: Prix | F6: Revenus estimés | G6: Revenus réels
B7: 300 | C7: 278 | D7: Adultes | E7: 5.00 € | F7: =B7*E7 -> 1,500.00 € | G7: =C7*E7 -> 1,390.00 €
B8: 197 | C8: 195 | D8: Enfants @ | E8: 2.00 € | F8: =B8*E8 -> 394.00 € | G8: =C8*E8 -> 390.00 €
B9: 42 | C9: 51 | D9: Autres | E9: 1.00 € | F9: =B9*E9 -> 42.00 € | G9: =C9*E9 -> 51.00 €
B10: Total | F10: =SUBTOTAL(109,Entrées[Revenus estimés]) -> 1,936.00 € | G10: =SUBTOTAL(109,Entrées[Revenus réels]) -> 1,831.00 €
A11: L’étiquette Publicités dans le programme se trouve dans la cellule de droite. | B11: PUBLICITÉS DANS LE PROGRAMME
A12: Entrez le nombre estimé et réel de publicités dans le programme ainsi que leur prix dans le tableau à partir de la cellule de droite. Les recettes estimées et réelles issues des publicités sont calculées automatiquement. L’instruction suivante figure dans la cellule A17. | B12: Nombre estimé | C12: Nombre réel | D12: Type | E12: Prix | F12: Revenus estimés | G12: Revenus réels
B13: 12 | D13: Couverture | F13: =B13*E13 -> 0.00 € | G13: =C13*E13 -> 0.00 €
C14: 158 | D14: Demi-page | F14: =B14*E14 -> 0.00 € | G14: =C14*E14 -> 0.00 €
B15: 4 | D15: Quart de page | F15: =B15*E15 -> 0.00 € | G15: =C15*E15 -> 0.00 €
B16: Total | F16: =SUBTOTAL(109,AnnoncesDansProgramme[Revenus estimés]) -> 0.00 € | G16: =SUBTOTAL(109,AnnoncesDansProgramme[Revenus réels]) -> 0.00 €
A17: L’étiquette Exposants ou fournisseurs figure dans la cellule de droite. | B17: EXPOSANTS/FOURNISSEURS
A18: Entrez le nombre estimé et réel d’exposants et de fournisseurs ainsi que le prix des stands dans le tableau commençant dans la cellule de droite. Les recettes estimées et réelles sont calculées automatiquement. L’instruction suivante figure dans la cellule A23. | B18: Nombre estimé | C18: Nombre réel | D18: Type | E18: Prix | F18: Revenus estimés | G18: Revenus réels
B19: 23 | D19: Grands stands | F19: =B19*E19 -> 0.00 € | G19: =C19*E19 -> 0.00 €
B20: 354 | D20: Stands moyens @ | F20: =B20*E20 -> 0.00 € | G20: =C20*E20 -> 0.00 €
B21: 56 | D21: Petits stands | F21: =B21*E21 -> 0.00 € | G21: =C21*E21 -> 0.00 €
B22: Total | F22: =SUBTOTAL(109,ExposantsEtVendeurs[Revenus estimés]) -> 0.00 € | G22: =SUBTOTAL(109,ExposantsEtVendeurs[Revenus réels]) -> 0.00 €
A23: L’étiquette Vente d’articles se trouve dans la cellule de droite. | B23: VENTE D’ARTICLES
A24: Entrez le nombre estimé et réel d’articles vendus ainsi que leur prix dans le tableau à partir de la cellule de droite. Les recettes estimées et réelles sont calculées automatiquement. | B24: Nombre estimé | C24: Nombre réel | D24: Type | E24: Prix | F24: Revenus estimés | G24: Recettes réelles
D25: Articles | F25: =B25*E25 -> 0.00 € | G25: =C25*E25 -> 0.00 €
B26: 123 | D26: Articles @ | F26: =B26*E26 -> 0.00 € | G26: =C26*E26 -> 0.00 €
D27: Articles @ | F27: =B27*E27 -> 0.00 € | G27: =C27*E27 -> 0.00 €
B28: 13 | D28: Articles | F28: =B28*E28 -> 0.00 € | G28: =C28*E28 -> 0.00 €
B29: Total | F29: =SUBTOTAL(109,VenteArticles[Revenus estimés]) -> 0.00 € | G29: =SUBTOTAL(109,VenteArticles[Recettes réelles]) -> 0.00 €

Sheet Résumé Résultat
A1: La synthèse et le graphique Compte de résultat illustrant le total des recettes et des dépenses sont mis à jour automatiquement dans cette feuille de calcul. Le titre de cette feuille de calcul est mis à jour automatiquement dans les cellules de droite. Le sous-titre figure dans les cellules G1 et G2. Des instructions utiles sur l’utilisation de cette feuille de calcul sont disponibles dans les cellules de cette colonne. L’instruction suivante figure dans la cellule A3. | B1: =Dépenses!B1 -> Budget d’événement pour | D1: =Dépenses!D1 -> Nom de l’événement | G1: RÉSUMÉ
G2: résultat
A3: Un histogramme comparant les recettes et dépenses estimées et réelles figure dans la cellule E3. | E3: Un histogramme comparant les recettes et dépenses estimées et réelles figure dans cette cellule.
A4: Le tableau Synthèse commençant à la cellule de droite est automatiquement mis à jour. L’instruction suivante figure dans la cellule A8. | B4: Total | C4: Estimé | D4: Réel
B5: Total des recettes | C5: =Recettes!F10 -> 1,936.00 € | D5: =Recettes!F4 -> 1,936.00 €
B6: Total des dépenses | C6: =Dépenses!G4 -> 882.00 € | D6: =Dépenses!H4 -> 302.00 €
A8: Le total des profits ou pertes estimé est calculé automatiquement en cellule C8 et le total des profits ou pertes réel en cellule D8. | B8: Total des bénéfices (ou perte) | C8: =C5-C6 -> 1,054.00 € | D8: =D5-D6 -> 1,634.00 €
